bitfinex/quotes_BTCUSD_20250529
["timestamp","ask_amount","ask_price","bid_price","bid_amount"]
[1748492257254,0.0092791,107760.0,107750.0,0.70469187]
[1748492257469,0.02783662,107770.0,107760.0,0.22595685]
[1748492257667,0.0185576,107770.0,107760.0,0.62229546]
[1748492257879,0.01855708,107770.0,107760.0,0.62229546]
[1748492258084,0.03711494,107770.0,107760.0,0.34767688]
[1748492258330,0.22269534,107770.0,107760.0,0.60373623]
[1748492258540,0.02783592,107770.0,107760.0,0.64085454]
[1748492258750,0.02783592,107770.0,107760.0,0.63172301]
[1748492258957,0.03711494,107770.0,107760.0,0.63372301]
[1748492259160,0.02783592,107770.0,107760.0,0.63372301]
[1748492259373,0.03811485,107770.0,107760.0,0.64500237]
[1748492259602,0.02883592,107770.0,107760.0,0.65428164]
[1748492260022,0.03811485,107770.0,107760.0,0.64499899]
[1748492260439,0.04739387,107770.0,107760.0,0.98499899]
[1748492260656,0.03811485,107770.0,107760.0,0.98499899]
[1748492261096,0.01955708,107770.0,107760.0,0.99427826]
[1748492261513,0.01027841,107770.0,107760.0,0.99427826]
[1748492261723,0.001,107770.0,107760.0,1.47969306]
[1748492261947,0.001,107770.0,107760.0,1.4943339]
[1748492262206,0.03710771,107790.0,107780.0,0.85989507]
[1748492262423,0.046385,107790.0,107780.0,1.26985279]
[1748492262626,0.0278305,107790.0,107780.0,1.27912983]
[1748492262839,0.0278305,107790.0,107780.0,1.29367068]
[1748492263263,0.22265375,107790.0,107780.0,1.26583811]
[1748492263509,0.22265375,107790.0,107780.0,1.27511592]
[1748492263926,0.03710779,107790.0,107780.0,1.28439364]
[1748492264135,0.01710779,107790.0,107780.0,1.29367128]
[1748492264349,0.01710779,107790.0,107780.0,1.30778814]
[1748492264350,0.01710736,107790.0,107780.0,1.30778814]
[1748492264557,0.03566169,107790.0,107780.0,1.29850999]
[1748492264796,0.03566169,107790.0,107780.0,1.28923235]
[1748492265211,0.03566169,107790.0,107780.0,1.29023235]
[1748492265407,0.03566169,107790.0,107780.0,1.29950999]
[1748492265615,0.03566169,107790.0,107780.0,1.29023235]
[1748492266058,0.02638431,107790.0,107780.0,1.29023235]
[1748492266265,0.0078305,107790.0,107780.0,1.2995099]
[1748492266480,0.21335762,107800.0,107790.0,0.55792308]
[1748492266688,0.20408153,107800.0,107790.0,0.95485815]
[1748492266888,0.20408153,107800.0,107790.0,0.93630399]
[1748492267096,0.20408153,107800.0,107790.0,0.9548584]
[1748492267524,0.20408153,107800.0,107790.0,0.68023741]
[1748492267737,0.19480518,107800.0,107790.0,0.75075803]
[1748492267941,0.19480518,107800.0,107790.0,0.95485832]
[1748492268153,0.19480518,107800.0,107790.0,0.94558128]
[1748492268362,0.19480518,107800.0,107790.0,0.95485832]
[1748492268363,0.19680518,107800.0,107790.0,0.95485832]
[1748492268571,0.19680518,107800.0,107790.0,0.95485849]
[1748492268769,0.19780518,107800.0,107790.0,0.67096046]
[1748492268979,0.18852875,107800.0,107790.0,0.75075803]
[1748492269596,0.18852875,107800.0,107790.0,0.46686]
[1748492269868,0.18852875,107800.0,107790.0,0.72765803]
[1748492270663,0.18852875,107800.0,107790.0,0.44376]
[1748492270873,0.18852875,107800.0,107790.0,0.72765803]
[1748492271321,0.16852875,107800.0,107790.0,0.72765803]
[1748492274006,0.16852875,107800.0,107790.0,0.74640812]
[1748492275531,0.1778051,107800.0,107790.0,0.9412312]
[1748492275747,0.18708153,107800.0,107790.0,0.9634312]
[1748492276407,0.18708153,107800.0,107790.0,0.97447462]
[1748492277052,0.18708153,107800.0,107790.0,0.9651975]
[1748492277270,0.18708153,107800.0,107790.0,0.98375148]
[1748492277563,0.02155278,107800.0,107790.0,0.99302826]
[1748492277778,0.03082809,107800.0,107790.0,1.00230495]
[1748492277990,0.22563319,107800.0,107790.0,0.98375166]
[1748492278417,0.20408136,107800.0,107790.0,0.98375166]
[1748492279285,0.03710444,107800.0,107790.0,1.00230521]
[1748492279497,0.03710444,107800.0,107790.0,1.00767223]
[1748492279920,0.03710444,107800.0,107790.0,1.01694901]
[1748492280135,0.02782809,107800.0,107790.0,1.0262257]
[1748492280349,0.01855183,107800.0,107790.0,1.01518228]
[1748492280569,0.00927566,107800.0,107790.0,1.01116871]
[1748492280781,0.00927566,107800.0,107790.0,0.996525]
[1748492280782,0.01855149,107800.0,107790.0,0.996525]
[1748492280988,0.03710375,107800.0,107790.0,0.99648544]
[1748492281192,0.00927566,107800.0,107790.0,0.99648544]
[1748492281429,0.01855149,107800.0,107790.0,0.99648544]
[1748492281837,0.01855149,107800.0,107790.0,0.99748544]
[1748492282250,0.02782749,107800.0,107790.0,0.99748544]
[1748492282668,0.01855149,107800.0,107790.0,0.99748544]
[1748492282878,0.02782749,107800.0,107790.0,0.99748544]
[1748492283090,0.01855149,107800.0,107790.0,0.99748544]
[1748492283300,0.02782749,107800.0,107790.0,0.99748544]
[1748492283513,0.03710366,107800.0,107790.0,0.99748544]
[1748492283717,0.02782749,107800.0,107790.0,0.99748544]
[1748492283918,0.01855149,107800.0,107790.0,0.99748544]
[1748492284124,0.02782749,107800.0,107790.0,0.99748544]
[1748492284532,0.03681182,107800.0,107790.0,0.99748544]
[1748492284742,0.03681182,107800.0,107790.0,0.69483732]
[1748492284944,0.04608817,107800.0,107790.0,0.99748544]
[1748492285384,0.01710444,107800.0,107790.0,0.98456307]
[1748492285602,0.02638087,107800.0,107790.0,0.98456307]
[1748492285819,0.22118562,107800.0,107790.0,0.97528621]
[1748492286247,0.21190962,107800.0,107790.0,0.96600926]
[1748492286903,0.21190962,107800.0,107790.0,0.97528612]
[1748492287761,0.22578153,107800.0,107790.0,0.76190897]
[1748492288193,0.22578153,107800.0,107790.0,0.78617825]
[1748492288614,0.21650518,107800.0,107790.0,0.77690096]
[1748492289060,0.21650518,107800.0,107790.0,0.77538096]
[1748492289317,0.21650518,107800.0,107790.0,0.7751798]
[1748492289573,0.21630402,107800.0,107790.0,0.7751798]
[1748492289827,0.21630402,107800.0,107790.0,0.77533144]
[1748492290063,0.21630402,107800.0,107790.0,0.7751798]
[1748492290339,0.21615225,107800.0,107790.0,0.47253168]
[1748492290583,0.21615225,107800.0,107790.0,0.7751798]
[1748492291298,0.21615225,107800.0,107790.0,0.78445709]
[1748492291534,0.21615225,107800.0,107790.0,0.7751798]
[1748492291766,0.21615225,107800.0,107790.0,0.95521214]
[1748492292478,0.19615225,107800.0,107790.0,0.95521214]
[1748492293816,0.19615225,107800.0,107790.0,1.35577214]
[1748492294281,0.01855243,107800.0,107790.0,1.39692569]
[1748492294500,0.01855243,107800.0,107790.0,1.40620238]
[1748492294501,0.01855209,107800.0,107790.0,1.40620238]
[1748492294737,0.22546286,107810.0,107800.0,0.54408135]
[1748492294957,0.22546286,107810.0,107800.0,0.86154168]
[1748492295399,0.03995054,107810.0,107800.0,1.18274112]
[1748492295632,0.03995054,107810.0,107800.0,1.17720543]
[1748492295633,0.01855054,107810.0,107800.0,1.17720543]
[1748492296075,0.01855054,107810.0,107800.0,1.17735326]
[1748492296076,0.02882603,107810.0,107800.0,1.17735326]
[1748492296296,0.02882603,107810.0,107800.0,1.1495256]
[1748492296297,0.214338,107810.0,107800.0,1.1495256]
[1748492296516,0.214338,107810.0,107800.0,1.17735378]
[1748492297225,0.02982646,107810.0,107800.0,1.17735318]
[1748492297447,0.02055089,107810.0,107800.0,1.17735318]
[1748492297659,0.002,107810.0,107800.0,1.48649403]
[1748492297904,0.02054986,107810.0,107800.0,1.59914798]
[1748492298124,0.03910005,107810.0,107800.0,1.59914798]
[1748492298333,0.03910005,107810.0,107800.0,1.60849387]
[1748492298549,0.04737545,107810.0,107800.0,1.31271763]
[1748492298773,0.04737545,107810.0,107800.0,1.91901387]
[1748492298987,0.04637545,107810.0,107800.0,1.91901387]
[1748492299198,0.03710065,107810.0,107800.0,1.89741387]
[1748492299416,0.23633774,107810.0,107800.0,1.06448269]
[1748492299639,0.21633774,107810.0,107800.0,0.94774184]
[1748492299856,0.23873774,107810.0,107800.0,1.04994184]
[1748492300734,0.23873774,107810.0,107800.0,1.05921827]
[1748492300735,0.21633774,107810.0,107800.0,1.05921827]
[1748492300954,0.21633774,107810.0,107800.0,0.64509372]
[1748492301187,0.23873774,107810.0,107800.0,1.06474826]
[1748492301414,0.21633774,107810.0,107800.0,1.06474826]
[1748492301868,0.04155072,107810.0,107800.0,1.58075348]
[1748492302098,0.04155072,107810.0,107800.0,1.26329894]
[1748492302099,0.02782629,107810.0,107800.0,1.26329894]
[1748492302336,0.20879479,107820.0,107810.0,0.52551154]
[1748492302554,0.20879479,107820.0,107810.0,0.65745407]
[1748492303190,0.20879479,107820.0,107810.0,0.35480595]
[1748492303401,0.01854848,107820.0,107810.0,0.88401633]
[1748492303613,0.02882311,107820.0,107810.0,0.88375123]
[1748492303832,0.03809765,107820.0,107810.0,0.88375123]
[1748492304061,0.03809765,107820.0,107810.0,0.86471419]
[1748492304298,0.03809765,107820.0,107810.0,0.87398916]
[1748492304550,0.03809765,107820.0,107810.0,0.87398925]
[1748492304783,0.04737236,107820.0,107810.0,0.87398925]
[1748492305014,0.2235925,107820.0,107810.0,0.86471419]
[1748492305266,0.2235925,107820.0,107810.0,0.87398933]
[1748492305505,0.2245925,107820.0,107810.0,0.87398933]
[1748492305729,0.2245925,107820.0,107810.0,1.16858933]
[1748492306206,0.03909816,107820.0,107810.0,1.16858933]
[1748492306415,0.03909816,107820.0,107810.0,1.17786439]
[1748492306624,0.2045925,107820.0,107810.0,1.16858933]
[1748492307122,0.21386713,107820.0,107810.0,1.12753896]
[1748492307340,0.21386713,107820.0,107810.0,1.13681427]
[1748492308188,0.23656713,107820.0,107810.0,1.13681427]
[1748492309043,0.22774368,107820.0,107810.0,0.84392788]
[1748492309251,0.22774368,107820.0,107810.0,1.12753896]
[1748492309468,0.04224934,107820.0,107810.0,1.13681427]
[1748492309701,0.01954848,107820.0,107810.0,1.17716438]
[1748492309905,0.02882293,107820.0,107810.0,1.17716438]
[1748492310125,0.03809747,107820.0,107810.0,1.17716438]
[1748492310879,0.01027402,107820.0,107810.0,1.17716438]
[1748492311100,0.01954822,107820.0,107810.0,1.17816438]
[1748492311747,0.00927402,107820.0,107810.0,1.17816438]
[1748492311950,0.01854822,107820.0,107810.0,1.17816438]
[1748492312597,0.03709721,107820.0,107810.0,1.17816438]
[1748492313587,0.04637184,107820.0,107810.0,1.17816438]
[1748492313795,0.02637141,107820.0,107810.0,1.17816438]
[1748492314211,0.02637089,107820.0,107810.0,1.17816438]
[1748492314424,0.02782259,107820.0,107810.0,1.17816438]
[1748492314639,0.01854822,107820.0,107810.0,1.17816438]
[1748492314848,0.0278225,107820.0,107810.0,1.17816438]
[1748492315053,0.03709687,107820.0,107810.0,1.57864438]
[1748492316111,0.04637141,107820.0,107810.0,1.57864438]
[1748492316322,0.0185483,107820.0,107810.0,1.57864438]
[1748492316731,0.0278225,107820.0,107810.0,1.57864438]
[1748492316942,0.01854813,107820.0,107810.0,1.62864438]
[1748492317153,0.02782233,107820.0,107810.0,1.62864438]
[1748492318025,0.01854813,107820.0,107810.0,1.62864438]
[1748492318237,0.23477682,107830.0,107820.0,0.20404316]
[1748492318443,0.23477682,107830.0,107820.0,0.48765424]
[1748492319101,0.03994676,107830.0,107820.0,0.49692878]
[1748492319310,0.05849421,107830.0,107820.0,0.50620289]
[1748492319527,0.06876806,107830.0,107820.0,0.50620289]
[1748492319755,0.06976806,107830.0,107820.0,0.50620289]
[1748492319998,0.23669843,107830.0,107820.0,0.48765441]
[1748492320190,0.23569843,107830.0,107820.0,0.48765441]
[1748492320399,0.23569843,107830.0,107820.0,0.47837996]
[1748492320600,0.22642475,107830.0,107820.0,0.02406098]
[1748492320821,0.21985098,107830.0,107820.0,0.11602627]
[1748492321036,0.21057713,107830.0,107820.0,0.11602627]
[1748492321665,0.21057713,107830.0,107820.0,0.11702627]
[1748492321873,0.20957713,107830.0,107820.0,0.45702627]
[1748492322097,0.30063108,107830.0,107820.0,0.35209231]
[1748492322375,0.30063108,107830.0,107820.0,0.45329231]
[1748492322590,0.60843108,107830.0,107820.0,0.45329231]
[1748492323646,0.60843108,107830.0,107820.0,0.45329757]
[1748492327534,0.60843108,107830.0,107820.0,0.01209757]
[1748492327748,0.60843108,107830.0,107820.0,0.001]
[1748492327965,0.58843108,107830.0,107820.0,0.001]
[1748492330889,0.61103108,107830.0,107820.0,0.001]
[1748492335346,0.59103108,107830.0,107820.0,0.001]
[1748492341510,0.28323108,107830.0,107820.0,0.001]
[1748492341721,0.58907108,107830.0,107820.0,0.001]
[1748492343201,0.56907108,107830.0,107820.0,0.001]
[1748492344697,0.61907108,107830.0,107820.0,0.001]
[1748492344944,0.56907108,107830.0,107820.0,0.001]
[1748492350292,0.54907108,107830.0,107820.0,0.001]
[1748492352786,0.54731108,107830.0,107820.0,0.001]
[1748492355560,0.54703108,107830.0,107820.0,0.001]
[1748492356256,0.54703108,107830.0,107820.0,0.30356708]
[1748492356257,0.22053108,107830.0,107820.0,0.30356708]
[1748492356471,0.52421108,107830.0,107820.0,0.31467413]
[1748492356682,0.19793108,107830.0,107820.0,0.33737413]
[1748492356881,0.50161108,107830.0,107820.0,0.34105335]
[1748492357232,0.08687713,107830.0,107820.0,0.03848627]
[1748492357493,0.08687713,107830.0,107820.0,0.34105335]
[1748492358335,0.08687713,107830.0,107820.0,0.35216493]
[1748492358948,0.08687713,107830.0,107820.0,0.36954061]
[1748492359142,0.08687713,107830.0,107820.0,0.35216493]
[1748492359340,0.08687713,107830.0,107820.0,0.35842877]
[1748492359572,0.08687713,107830.0,107820.0,0.36953841]
[1748492359969,0.08687713,107830.0,107820.0,0.36952361]
[1748492360416,0.08687713,107830.0,107820.0,0.06695555]
[1748492360641,0.08687713,107830.0,107820.0,0.37184101]
[1748492360829,0.08687713,107830.0,107820.0,0.36952258]
[1748492361418,0.08687713,107830.0,107820.0,0.36951756]
[1748492361842,0.08687713,107830.0,107820.0,0.3695149]
[1748492362225,0.08687713,107830.0,107820.0,0.36951489]
[1748492362621,0.08687713,107830.0,107820.0,0.352163]
[1748492363280,0.08687713,107830.0,107820.0,0.35472862]
[1748492363491,0.08687713,107830.0,107820.0,0.33737673]
[1748492364136,0.08687713,107830.0,107820.0,0.32626708]
[1748492364337,0.06687713,107830.0,107820.0,0.3373723]
[1748492364476,0.06687713,107830.0,107820.0,0.01210522]
[1748492364678,0.06687713,107830.0,107820.0,0.3146723]
[1748492364890,0.06687713,107830.0,107820.0,0.02945714]
[1748492365092,0.06687713,107830.0,107820.0,0.3146723]
[1748492365890,0.06687713,107830.0,107820.0,0.33202364]
[1748492366584,0.06687713,107830.0,107820.0,0.35362364]
[1748492366797,0.06687713,107830.0,107820.0,0.35362245]
[1748492367104,0.06687713,107830.0,107820.0,0.35362244]
[1748492367863,0.06687713,107830.0,107820.0,0.35362177]
[1748492368456,0.06687713,107830.0,107820.0,0.35361975]
[1748492368930,0.06687713,107830.0,107820.0,0.35361955]
[1748492369408,0.06687713,107830.0,107820.0,0.31467025]
[1748492369614,0.06687713,107830.0,107820.0,0.01210317]
[1748492369842,0.06687713,107830.0,107820.0,0.31698869]
[1748492370074,0.06687713,107830.0,107820.0,0.31467025]
[1748492370328,0.06687713,107830.0,107820.0,0.33201954]
[1748492370551,0.06687713,107830.0,107820.0,0.33201957]
[1748492370783,0.06687713,107830.0,107820.0,0.31467025]
[1748492371476,0.04687713,107830.0,107820.0,0.31467025]
[1748492371712,0.04687713,107830.0,107820.0,0.01210317]
[1748492371949,0.04687713,107830.0,107820.0,0.31698869]
[1748492372168,0.04687713,107830.0,107820.0,0.31467025]
[1748492372383,0.04687713,107830.0,107820.0,0.33201956]
[1748492372624,0.04687713,107830.0,107820.0,0.31467027]
[1748492373379,0.04687713,107830.0,107820.0,0.34614498]
[1748492373605,0.04687713,107830.0,107820.0,0.54642559]
[1748492373832,0.04687713,107830.0,107820.0,0.35165654]
[1748492374074,0.04687713,107830.0,107820.0,0.34055335]
[1748492374291,0.2040055,107840.0,107830.0,0.00927377]
[1748492374525,0.22255088,107840.0,107830.0,1.00236336]
[1748492374748,0.02781795,107840.0,107830.0,1.02410469]
[1748492374974,0.02781795,107840.0,107830.0,1.05072442]
[1748492374975,0.02781786,107840.0,107830.0,1.05072442]
[1748492375195,0.02781786,107840.0,107830.0,1.01859167]
[1748492375422,0.01854504,107840.0,107830.0,1.03338809]
[1748492375639,0.00927222,107840.0,107830.0,1.01524038]
[1748492375832,0.00927162,107850.0,107840.0,0.55327814]
[1748492376048,0.04635895,107850.0,107840.0,0.9062682]
[1748492376256,0.03708682,107850.0,107840.0,0.92481324]
[1748492376455,0.23180169,107850.0,107840.0,0.91554085]
[1748492376654,0.21325871,107850.0,107840.0,0.90626829]
[1748492376862,0.20398692,107850.0,107840.0,0.90626829]
[1748492377124,0.20447946,107850.0,107840.0,0.90726829]
[1748492377757,0.20447946,107850.0,107840.0,0.91654094]
[1748492377980,0.20447946,107850.0,107840.0,0.9258135]
[1748492378192,0.20447946,107850.0,107840.0,0.91654094]
[1748492378393,0.20447946,107850.0,107840.0,0.92581342]
[1748492378585,0.18447946,107850.0,107840.0,0.94321469]
[1748492378789,0.18447946,107850.0,107840.0,0.93394204]
[1748492379168,0.18447946,107850.0,107840.0,0.60475754]
[1748492379402,0.18447946,107850.0,107840.0,0.90732462]
[1748492379800,0.18447946,107850.0,107840.0,0.93058417]
[1748492380571,0.19375159,107850.0,107840.0,0.95717163]
[1748492380779,0.19375159,107850.0,107840.0,0.93058417]
[1748492380979,0.19375159,107850.0,107840.0,0.94789859]
[1748492381180,0.19375159,107850.0,107840.0,0.94789863]
[1748492381305,0.19375159,107850.0,107840.0,0.93058417]
[1748492381502,0.19375159,107850.0,107840.0,0.94789863]
[1748492381727,0.19375159,107850.0,107840.0,0.93058417]
[1748492384175,0.19375159,107850.0,107840.0,0.93985699]
[1748492384383,0.19375159,107850.0,107840.0,0.93058417]
[1748492384989,0.19375159,107850.0,107840.0,0.94789914]
[1748492385187,0.19375159,107850.0,107840.0,0.93058417]
[1748492385404,0.19375159,107850.0,107840.0,0.73585132]
[1748492385630,0.17375159,107850.0,107840.0,0.73585132]
[1748492385836,0.17375159,107850.0,107840.0,0.74389548]
[1748492385837,0.16447946,107850.0,107840.0,0.74389548]
[1748492386161,0.16447946,107850.0,107840.0,0.72657833]
[1748492386977,0.16447946,107850.0,107840.0,0.73585132]
[1748492387328,0.16447946,107850.0,107840.0,0.74692365]
[1748492387654,0.16447946,107850.0,107840.0,0.73585132]
[1748492388231,0.16447946,107850.0,107840.0,0.74692324]
[1748492388776,0.16447946,107850.0,107840.0,0.72412324]
[1748492388976,0.16447946,107850.0,107840.0,0.74144047]
[1748492389176,0.16447946,107850.0,107840.0,0.71305132]
[1748492389390,0.16447946,107850.0,107840.0,0.72412313]
[1748492389672,0.16447946,107850.0,107840.0,0.74144036]
[1748492389795,0.16447946,107850.0,107840.0,0.72412313]
[1748492389996,0.16447946,107850.0,107840.0,0.71485014]
[1748492390218,0.16447946,107850.0,107840.0,0.73216271]
[1748492390671,0.16447946,107850.0,107840.0,0.71485014]
[1748492391043,0.16447946,107850.0,107840.0,0.72412313]
[1748492391245,0.16447946,107850.0,107840.0,0.42155605]
[1748492391447,0.16447946,107850.0,107840.0,0.72412313]
[1748492391651,0.16447946,107850.0,107840.0,0.90958307]
[1748492391852,0.16447946,107850.0,107840.0,0.91885589]
[1748492392111,0.16447946,107850.0,107840.0,0.90958307]
[1748492392479,0.16447946,107850.0,107840.0,0.89851126]
[1748492392683,0.14447946,107850.0,107840.0,0.91885688]
[1748492393348,0.14447946,107850.0,107840.0,0.90778417]
[1748492393484,0.15375142,107850.0,107840.0,0.93945682]
[1748492393682,0.15375142,107850.0,107840.0,0.91705699]
[1748492394745,0.15375142,107850.0,107840.0,0.93435557]
[1748492394950,0.15375142,107850.0,107840.0,0.91705699]
[1748492396411,0.15375142,107850.0,107840.0,0.93434387]
[1748492396619,0.15375142,107850.0,107840.0,0.91705699]
[1748492396968,0.15375142,107850.0,107840.0,0.90778417]
[1748492397157,0.15375142,107850.0,107840.0,0.92507106]
[1748492397795,0.15375142,107850.0,107840.0,0.9250711]
[1748492397997,0.15375142,107850.0,107840.0,0.92505106]
[1748492398203,0.15375142,107850.0,107840.0,0.90778417]
[1748492398639,0.15375142,107850.0,107840.0,0.92505106]
[1748492398841,0.15375142,107850.0,107840.0,0.90778417]
[1748492400070,0.15375142,107850.0,107840.0,1.00526417]
[1748492400237,0.15375142,107850.0,107840.0,1.02380972]
[1748492400460,0.13375142,107850.0,107840.0,1.02380972]
[1748492400604,0.13375142,107850.0,107840.0,1.04118482]
[1748492400996,0.13375142,107850.0,107840.0,1.03308237]
[1748492401441,0.13375142,107850.0,107840.0,1.05045744]
[1748492401674,0.13375142,107850.0,107840.0,1.03308237]
[1748492402122,0.13375142,107850.0,107840.0,1.01453699]
[1748492402350,0.13375142,107850.0,107840.0,0.99243699]
[1748492402779,0.13375142,107850.0,107840.0,1.00981208]
[1748492402994,0.13375142,107850.0,107840.0,1.00981207]
[1748492403211,0.13375142,107850.0,107840.0,0.99243699]
[1748492403431,0.13375142,107850.0,107840.0,0.99501661]
[1748492403647,0.13375142,107850.0,107840.0,0.97764153]
[1748492404092,0.13375142,107850.0,107840.0,1.01526573]
[1748492404575,0.13375142,107850.0,107840.0,1.03264081]
[1748492404795,0.13375142,107850.0,107840.0,1.01526573]
[1748492405011,0.13375142,107850.0,107840.0,1.03264081]
[1748492405691,0.13375142,107850.0,107840.0,1.04191346]
[1748492405933,0.03758038,107850.0,107840.0,1.07398589]
[1748492406202,0.03758038,107850.0,107840.0,1.41417657]
[1748492406433,0.22302312,107850.0,107840.0,1.38635905]
[1748492406687,0.21375142,107850.0,107840.0,1.01409495]
[1748492406900,0.21375142,107850.0,107840.0,1.02336768]
[1748492407141,0.21375142,107850.0,107840.0,1.03263922]
[1748492407381,0.21375142,107850.0,107840.0,1.05513922]
[1748492407601,0.19375142,107850.0,107840.0,1.05513922]
[1748492407817,0.19375142,107850.0,107840.0,1.03263922]
[1748492408031,0.19375142,107850.0,107840.0,1.0140941]
[1748492408943,0.19375142,107850.0,107840.0,1.0152653]
[1748492409382,0.19375142,107850.0,107840.0,1.05613948]
[1748492409807,0.01758055,107850.0,107840.0,1.06541196]
[1748492410007,0.20302329,107850.0,107840.0,1.05613995]
[1748492410708,0.20302329,107850.0,107840.0,1.04803778]
[1748492410945,0.01758055,107850.0,107840.0,1.07468481]
[1748492411150,0.02781562,107850.0,107840.0,0.72378114]
[1748492411354,0.02781562,107850.0,107840.0,1.04659778]
[1748492411991,0.21325836,107850.0,107840.0,1.0373253]
[1748492412205,0.21325836,107850.0,107840.0,1.05469993]
[1748492412408,0.21325836,107850.0,107840.0,1.0373253]
[1748492412610,0.21325836,107850.0,107840.0,1.04659778]
[1748492412816,0.02781554,107850.0,107840.0,1.05587017]
[1748492413438,0.02781545,107850.0,107840.0,1.05587017]
[1748492413686,0.0370875,107850.0,107840.0,1.39606145]
[1748492413891,0.0370875,107850.0,107840.0,1.05587017]
[1748492414307,0.0370875,107850.0,107840.0,1.05606145]
[1748492414514,0.20253024,107850.0,107840.0,1.04678906]
[1748492414731,0.02635937,107850.0,107840.0,1.05606145]
[1748492414936,0.02635937,107850.0,107840.0,0.73324485]
[1748492415140,0.02635937,107850.0,107840.0,0.73324481]
[1748492415335,0.02635937,107850.0,107840.0,0.71587017]
[1748492415547,0.02635937,107850.0,107840.0,0.73324481]
[1748492415749,0.02635937,107850.0,107840.0,0.71587017]
[1748492415978,0.02635894,107850.0,107840.0,0.71587017]
[1748492416583,0.02635894,107850.0,107840.0,0.73324479]
[1748492416789,0.02635894,107850.0,107840.0,0.71587017]
[1748492417646,0.02635894,107850.0,107840.0,0.73324479]
[1748492418077,0.04490312,107850.0,107840.0,1.05587017]
[1748492418297,0.04490312,107850.0,107840.0,1.04654102]
[1748492418537,0.02635894,107850.0,107840.0,1.06391565]
[1748492418756,0.02635894,107850.0,107840.0,1.04654102]
[1748492420686,0.01854349,107850.0,107840.0,1.04654102]
[1748492420907,0.02781545,107850.0,107840.0,1.04654102]
[1748492421158,0.02781545,107850.0,107840.0,1.06391567]
[1748492421582,0.18407269,107860.0,107850.0,0.00927213]
[1748492421797,0.22857269,107860.0,107850.0,0.46843158]
[1748492422018,0.22857269,107860.0,107850.0,0.45105701]
[1748492422237,0.22857269,107860.0,107850.0,0.47770355]
[1748492422579,0.24846784,107860.0,107850.0,0.65504375]
[1748492422811,0.24846784,107860.0,107850.0,0.67241588]
[1748492423034,0.24846784,107860.0,107850.0,0.65758993]
[1748492423252,0.23919674,107860.0,107850.0,0.6575899]
[1748492423675,0.23919674,107860.0,107850.0,0.65504066]
[1748492423924,0.23919674,107860.0,107850.0,0.67240739]
[1748492424129,0.24119674,107860.0,107850.0,0.67240739]
[1748492424560,0.23192555,107860.0,107850.0,0.66313534]
[1748492424799,0.24119682,107860.0,107850.0,1.01259849]
[1748492425026,0.02054194,107860.0,107850.0,1.38001953]
[1748492425250,0.02054194,107860.0,107850.0,0.68227024]
[1748492425470,0.24670995,107860.0,107850.0,1.32968144]
[1748492425680,0.26990995,107860.0,107850.0,0.99876203]
[1748492425892,0.26990995,107860.0,107850.0,1.01612669]
[1748492426324,0.24570995,107860.0,107850.0,1.35631797]
[1748492426754,0.24470995,107860.0,107850.0,1.3482251]
[1748492427406,0.24986801,107860.0,107850.0,0.69754925]
[1748492427615,0.24986801,107860.0,107850.0,0.79100546]
[1748492427822,0.24986801,107860.0,107850.0,0.80836415]
[1748492428030,0.24986801,107860.0,107850.0,0.79100546]
[1748492428446,0.24986801,107860.0,107850.0,0.80836442]
[1748492428656,0.22986801,107860.0,107850.0,0.80836442]
[1748492429074,0.22986801,107860.0,107850.0,0.79100546]
[1748492429294,0.22986801,107860.0,107850.0,0.80836553]
[1748492429500,0.22986801,107860.0,107850.0,0.80836566]
[1748492430121,0.22986801,107860.0,107850.0,0.80836568]
[1748492430648,0.22986801,107860.0,107850.0,0.79100546]
[1748492430847,0.22986801,107860.0,107850.0,0.80836636]
[1748492431294,0.22986801,107860.0,107850.0,0.80836635]
[1748492431506,0.22986801,107860.0,107850.0,0.80836695]
[1748492431784,0.22986801,107860.0,107850.0,0.4681757]
[1748492431984,0.22986801,107860.0,107850.0,0.80836698]
[1748492432626,0.22986801,107860.0,107850.0,0.79100546]
[1748492432834,0.22986801,107860.0,107850.0,0.80836751]
[1748492433405,0.22986801,107860.0,107850.0,0.79100546]
[1748492433620,0.22986801,107860.0,107850.0,0.80836798]
[1748492434661,0.22986801,107860.0,107850.0,0.80836841]
[1748492435090,0.22986801,107860.0,107850.0,0.79100546]
[1748492435291,0.22986801,107860.0,107850.0,0.80836842]
[1748492435730,0.22986801,107860.0,107850.0,0.77619128]
[1748492435944,0.20986801,107860.0,107850.0,0.7935546]
[1748492436146,0.20986801,107860.0,107850.0,0.77619128]
[1748492436357,0.20986801,107860.0,107850.0,0.7935546]
[1748492436532,0.20986801,107860.0,107850.0,0.80837]
[1748492436771,0.20986801,107860.0,107850.0,0.79100668]
[1748492437406,0.20986801,107860.0,107850.0,0.80837016]
[1748492437581,0.20986801,107860.0,107850.0,0.79100668]
[1748492437797,0.20986801,107860.0,107850.0,0.80837016]
[1748492438003,0.20986801,107860.0,107850.0,0.79100668]
[1748492438633,0.20986801,107860.0,107850.0,0.45100668]
[1748492438973,0.20986801,107860.0,107850.0,0.79100668]
[1748492440347,0.20986801,107860.0,107850.0,0.80836994]
[1748492440878,0.20986801,107860.0,107850.0,0.46817866]
[1748492441173,0.20986801,107860.0,107850.0,0.79100668]
[1748492441290,0.20986801,107860.0,107850.0,0.80836984]
[1748492441501,0.20986801,107860.0,107850.0,0.79100668]
[1748492442359,0.20986801,107860.0,107850.0,0.80836984]
[1748492442575,0.20986801,107860.0,107850.0,0.79100668]
[1748492442920,0.18986801,107860.0,107850.0,0.80836984]
[1748492443687,0.18986801,107860.0,107850.0,0.45100668]
[1748492444368,0.18986801,107860.0,107850.0,0.46836984]
[1748492444569,0.18986801,107860.0,107850.0,0.45100668]
[1748492444987,0.18986801,107860.0,107850.0,0.4683703]
[1748492445325,0.18986801,107860.0,107850.0,0.46837031]
[1748492446117,0.18986801,107860.0,107850.0,0.45100668]
[1748492446353,0.18986801,107860.0,107850.0,0.4683702]
[1748492447421,0.18986801,107860.0,107850.0,0.45100668]
[1748492447832,0.18986801,107860.0,107850.0,0.46837026]
[1748492448043,0.18986801,107860.0,107850.0,0.45100668]
[1748492448461,0.18986801,107860.0,107850.0,0.46837026]
[1748492448657,0.18986801,107860.0,107850.0,0.45100668]
[1748492448861,0.18986801,107860.0,107850.0,0.79100668]
[1748492450001,0.16986801,107860.0,107850.0,0.80837024]
[1748492450249,0.16986801,107860.0,107850.0,0.79100668]
[1748492451566,0.16986801,107860.0,107850.0,0.80837027]
[1748492452403,0.16986801,107860.0,107850.0,0.79100668]
[1748492453333,0.16986801,107860.0,107850.0,0.46817845]
[1748492453532,0.16986801,107860.0,107850.0,0.79100668]
[1748492455604,0.16986801,107860.0,107850.0,0.4508154]
[1748492455823,0.16986801,107860.0,107850.0,0.4494954]
[1748492456238,0.16986801,107860.0,107850.0,0.78968668]
[1748492456659,0.16986801,107860.0,107850.0,0.8244276]
[1748492456873,0.16986801,107860.0,107850.0,0.48423632]
[1748492457084,0.16986801,107860.0,107850.0,0.80705714]
[1748492458131,0.14986801,107860.0,107850.0,0.80705714]
[1748492458637,0.14986801,107860.0,107850.0,0.82442971]
[1748492458899,0.14986801,107860.0,107850.0,0.80705714]
[1748492459325,0.14986801,107860.0,107850.0,0.46686586]